Cogmind - Beta 10.1 @@@ ROGUE MODE // 2020.10.02 @ 14:16:41 // Winter2019/RPGLIKE Player: HOTSOUP Result: Destroyed by as-64509 with Assembled Maul Performance ------------- Evolutions (1) 500 Regions Visited (4) 800 Robots Destroyed (12) 60 Value Destroyed (127) 127 Prototype IDs (2) 40 Alien Tech Used (0) 0 Bonus (0) 0 TOTAL SCORE: 1527 Bonus ------- None Cogmind --------- Core Integrity 0/900 Matter 290/300 Energy 100/100 System Corruption 1% Temperature Cool (0) Movement Core (50) Location -9/Mines Parts ------- > --- POWER (1) -------- (None) > --- PROPULSION (2) --- (None) > --- UTILITY (2) ------ (None) > --- WEAPON (1) ------- Rocket Launcher > --- INVENTORY (0) ---- (None) Peak State ------------ > --- POWER ------------ Light Ion Engine > --- PROPULSION ------- Flight Unit Flight Unit > --- UTILITY ---------- Experimental Sensor Array Sensor Drone Bay > --- WEAPON ----------- Mining Claw > --- INVENTORY -------- (None) [Rating: 18] Favorites ----------- Power Light Ion Engine Engine Light Ion Engine Propulsion Flight Unit Flight Unit Flight Unit Utility ECM Suite Device ECM Suite Weapon Mining Claw Launcher Rocket Launcher Slashing Weapon Mining Claw Build | -11 -10 -10 -9 -9 ------- Run | Scr Mat Min Mat Min Slots Evolved 2 | 1 . . 1 . Power . | . . . . . Propulsion 1 | 1 . . . . Utility 1 | . . . 1 . Weapon . | . . . . . Parts Attached 13 | . 2 8 1 2 Power 2 | . . 2 . . Engine 2 | . . 2 . . Core . | . . . . . Reactor . | . . . . . Propulsion 4 | . . 4 . . Treads . | . . . . . Leg . | . . . . . Wheel . | . . . . . Hover . | . . . . . Flight 4 | . . 4 . . Utility 4 | . 1 1 1 1 Device 4 | . 1 1 1 1 Storage . | . . . . . Processor . | . . . . . Hackware . | . . . . . Protection . | . . . . . Artifact . | . . . . . Weapon 3 | . 1 1 . 1 Energy Gun . | . . . . . Energy Cannon . | . . . . . Ballistic Gun . | . . . . . Ballistic Cannon . | . . . . . Launcher 1 | . . . . 1 Special Weapon . | . . . . . Impact Weapon . | . . . . . Slashing Weapon 2 | . 1 1 . . Piercing Weapon . | . . . . . Special Melee Weapon . | . . . . . Unidentified Prototypes 2 | . . 1 . 1 Parts Lost 3 | . . . . 3 Power 1 | . . . . 1 Propulsion 2 | . . . . 2 Utility . | . . . . . Weapon . | . . . . . Highest Loss Streak 2 | . . . . 2 Average Slot Usage (%) 63 | . 31 79 83 45 Engine 5 | . . 1 16 9 Flight 25 | . . 37 33 15 Device 14 | . 13 20 16 3 Slashing Weapon 17 | . 17 20 16 14 Naked Turns 24 | . 23 . . 1 Heaviest Build 20 | . 3 6 6 20 Greatest Support 18 | 8 8 13 13 18 Greatest Overweight (x) 1 | . . . . 1 Average Overweight (x) . | . . . . . Largest Inventory Capacity . | . . . . . Average Capacity . | . . . . . Most Carried . | . . . . . Average Carried . | . . . . . Final Capacity . | . . . . . Final Carried . | . . . . . Class Distribution -------------------- 61% | Mutant 38% | Hacker-Mutant Dominant Class ---------------- Mutant | -10/Materials Mutant | -10/Mines Hacker-Mutant | -9/Materials Hacker-Mutant | -9/Mines Resources | -11 -10 -10 -9 -9 ----------- Run | Scr Mat Min Mat Min Matter Collected 320 | 200 . 80 . 40 Remotely . | . . . . . Salvage Created 162 | . 16 130 . 16 Parts 18 | . . 14 1 3 Haulers Intercepted . | . . . . . Recyclers Shooed . | . . . . . Parts Field Recycled . | . . . . . Retrieved Matter . | . . . . . Parts Self-Destructed . | . . . . . Prevented . | . . . . . Kills | -11 -10 -10 -9 -9 ------- Run | Scr Mat Min Mat Min Combat Hostiles Destroyed 8 | . . 5 1 2 Melee 8 | . . 5 1 2 Classes Destroyed 5 | . 1 3 1 . Worker 2 | . . 2 . . Builder 1 | . . 1 . . Operator 1 | . 1 . . . Swarmer 7 | . . 5 . 2 Grunt 1 | . . . 1 . Best Kill Streak 2 | . 1 2 1 1 Combat Bots Only 2 | . . 2 1 1 Max Kills in Single Turn 1 | . 1 1 1 1 Gunslinging . | . . . . . Exploded . | . . . . . Melee 1 | . . 1 1 1 Uniques/NPCs Destroyed . | . . . . . Combat | -11 -10 -10 -9 -9 -------- Run | Scr Mat Min Mat Min Damage Taken 1121 | . 255 258 209 399 Core 1007 | . 243 226 182 356 Absorbed by Shields . | . . . . . Redirected to Core 353 | . 37 89 95 132 Core Remaining (%) 64 | 100 . 28 . . Volleys Fired . | . . . . . Largest . | . . . . . Hottest . | . . . . . Shots Fired . | . . . . . Gun . | . . . . . Cannon . | . . . . . Launcher . | . . . . . Special . | . . . . . Kinetic . | . . . . . Thermal . | . . . . . Explosive . | . . . . . Electromagnetic . | . . . . . Robot Hit Streak . | . . . . . Robot Miss Streak . | . . . . . Penetration Max . | . . . . . Secondary Targets . | . . . . . Shots Hit Robots 38 | . 4 18 7 9 Core Hits 12 | . 1 8 1 2 Critical Hits 1 | . . 1 . . Critical Kills . | . . . . . Critical Parts Destroyed 1 | . . 1 . . Melee Attacks 90 | . 8 28 19 35 Impact . | . . . . . Slashing 90 | . 8 28 19 35 Piercing . | . . . . . Sneak Attacks 7 | . 1 5 . 1 Combat Hostiles . | . . . . . Follow-up Attacks . | . . . . . Damage Inflicted 1206 | . 177 590 177 262 Guns . | . . . . . Cannons . | . . . . . Explosions . | . . . . . Melee 1206 | . 177 590 177 262 Ramming . | . . . . . Kinetic . | . . . . . Thermal . | . . . . . Explosive . | . . . . . Electromagnetic . | . . . . . Impact . | . . . . . Slashing 1206 | . 177 590 177 262 Piercing . | . . . . . Highest Corruption 1 | . . . . 1 Average Corruption 1 | . . . . 1 Corruption Purged . | . . . . . Effects 1 | . . . . 1 Energy Discharges 1 | . . . . 1 Overload Shots . | . . . . . Overflow Damage 250 | . 65 124 10 51 Projectiles . | . . . . . Explosions . | . . . . . Melee 250 | . 65 124 10 51 Knockbacks . | . . . . . Impact . | . . . . . Kinetic . | . . . . . Secondary . | . . . . . Self-Inflicted Damage . | . . . . . Shots . | . . . . . Rammed . | . . . . . Targets Rammed . | . . . . . Kicked . | . . . . . Crushed . | . . . . . Highest Temperature . | . . . . . Average Temperature . | . . . . . Received Heat Transfer 138 | . 33 . 81 24 Siege Activations . | . . . . . Robots Corrupted . | . . . . . Combat Hostiles . | . . . . . Parts Fried . | . . . . . Impact Corruptions . | . . . . . Robots Melted . | . . . . . Combat Hostiles . | . . . . . Parts Melted . | . . . . . Heat Transferred . | . . . . . Parts Sabotaged . | . . . . . Parts Stolen . | . . . . . Parts Stripped . | . . . . . Power Chain Reactions . | . . . . . Missiles Intercepted . | . . . . . Alert | -11 -10 -10 -9 -9 ------- Run | Scr Mat Min Mat Min Peak Influence 172 | . 68 172 87 73 Initial 33 | . . 22 . 33 Average 73 | . 28 111 37 52 Maximum Alert Level . | . . . . . Low Security (%) 100 | 100 100 100 100 100 Level 1 . | . . . . . Level 2 . | . . . . . Level 3 . | . . . . . Level 4 . | . . . . . Level 5 . | . . . . . High Security . | . . . . . Max Security . | . . . . . Squads Dispatched 3 | . 1 . 1 1 Investigation 1 | . . . 1 . Extermination . | . . . . . Reinforcement 2 | . 1 . . 1 Assault . | . . . . . Garrison . | . . . . . Intercept . | . . . . . Construction Impeded 1 | . . . . 1 Haulers Reinforced . | . . . . . Stealth | -11 -10 -10 -9 -9 --------- Run | Scr Mat Min Mat Min Distress Signals 1 | . 1 . . . Communications Jammed . | . . . . . Distress Signals . | . . . . . Times Spotted 45 | . 21 9 6 9 Peak Tracking Total 10 | . 10 3 6 4 Tactical Retreats 11 | . 4 4 . 3 Traps | -11 -10 -10 -9 -9 ------- Run | Scr Mat Min Mat Min Traps Triggered 1 | . 1 . . . Indirectly . | . . . . . Trap Hack Attempts . | . . . . . Triggered . | . . . . . Disarmed . | . . . . . Reprogrammed . | . . . . . Reused . | . . . . . Traps Extracted . | . . . . . Installed 5 | . . . . 5 Triggered . | . . . . . Machines | -11 -10 -10 -9 -9 ---------- Run | Scr Mat Min Mat Min Machines Disabled . | . . . . . Max in Single Turn . | . . . . . Machines Sabotaged . | . . . . . Garrisons Compromised . | . . . . . Overloaded Fab Kills . | . . . . . Fab Network Shutdowns . | . . . . . Hacking | -11 -10 -10 -9 -9 --------- Run | Scr Mat Min Mat Min Machines Accessed 7 | . 4 . 2 1 Terminals 5 | . 4 . 1 . Fabricators . | . . . . . Repair Stations . | . . . . . Recycling Units . | . . . . . Scanalyzers 1 | . . . 1 . Garrison Access . | . . . . . Total Hacks 11 | . 6 . 4 1 Successful 8 | . 5 . 2 1 Failed 3 | . 1 . 2 . Catastrophic . | . . . . . Database Lockouts . | . . . . . Manual 7 | . 3 . 4 . Terminals 9 | . 6 . 3 . Fabricators . | . . . . . Repair Stations . | . . . . . Recycling Units . | . . . . . Scanalyzers 1 | . . . 1 . Garrison Access . | . . . . . Terminal Hacks 4 | . 2 . 1 1 Open Door 1 | . . . . 1 Branch Access Points 2 | . 1 . 1 . Locate Traps 1 | . 1 . . . Fabricator Hacks . | . . . . . Repair Station Hacks . | . . . . . Recycling Unit Hacks . | . . . . . Scanalyzer . | . . . . . Garrison Access Hacks . | . . . . . Unauthorized Hacks 4 | . 3 . 1 . Terminals 3 | . 3 . . . Assimilate 1 | . 1 . . . Botnet 2 | . 2 . . . Fabricators . | . . . . . Repair Stations . | . . . . . Recycling Units . | . . . . . Scanalyzers 1 | . . . 1 . Extract 1 | . . . 1 . Garrison Access . | . . . . . Data Cores Recovered . | . . . . . Used . | . . . . . Hacking Detections 2 | . 2 . . . Full Trace Events . | . . . . . Feedback Events . | . . . . . Feedback Blocked . | . . . . . Robot Schematics Acquired . | . . . . . Robots Built . | . . . . . Matter . | . . . . . Time . | . . . . . Total Robot Build Rating . | . . . . . Part Schematics Acquired 1 | . . . 1 . Parts Built . | . . . . . Matter . | . . . . . Time . | . . . . . Total Part Build Rating . | . . . . . Parts Repaired . | . . . . . Time . | . . . . . Parts Recycled . | . . . . . Recycled Matter . | . . . . . Retrieved Matter . | . . . . . Retrieved Components . | . . . . . Parts Scanalyzed . | . . . . . Part Schematics Acquired . | . . . . . Parts Damaged . | . . . . . Bothacking | -11 -10 -10 -9 -9 ------------ Run | Scr Mat Min Mat Min Used RIF Installer . | . . . . . Robots Hacked . | . . . . . Non-combat . | . . . . . Combat . | . . . . . Robot Hacks Applied . | . . . . . Relay Couplers Released . | . . . . . Robots Rewired . | . . . . . Allies Hacked . | . . . . . Hacks Repelled . | . . . . . Allies | -11 -10 -10 -9 -9 -------- Run | Scr Mat Min Mat Min Total Allies 1 | . 1 . . . Largest Group 1 | . 1 . . . Highest-Rated Group 10 | . 10 . . . Highest-Rated Ally 10 | . 10 . . . Total Orders . | . . . . . Ally Attacks . | . . . . . Total Damage . | . . . . . Kills . | . . . . . Allies Corrupted . | . . . . . Allies Melted . | . . . . . Intel | -11 -10 -10 -9 -9 ------- Run | Scr Mat Min Mat Min Robot Analysis Total . | . . . . . Derelict Logs Recovered 3 | . . 2 . 1 Drone Launches 4 | . . . . 4 Drone Recoveries . | . . . . . Exploration | -11 -10 -10 -9 -9 ------------- Run | Scr Mat Min Mat Min Turns Passed 1001 | 14 159 459 125 244 Spaces Moved 1425 | 29 249 799 126 222 Core 426 | 29 249 93 . 55 Treads . | . . . . . Legs . | . . . . . Wheels . | . . . . . Hover . | . . . . . Flight 999 | . . 706 126 167 Fastest Speed 37 | 50 50 37 37 37 Average Speed 43 | 50 50 40 38 47 Slowest Speed 117 | 50 50 50 40 117 Overloaded Moves . | . . . . . Propulsion Burnouts . | . . . . . Robots Hopped 12 | . . 2 4 6 Cave-ins Triggered 2 | . . . . 2 Exploration Rate (%) 41 | 4 42 94 20 45 Regions Visited 4 Branch Regions 2 Pre-discovered Areas 2 | . . 1 . 1 Known Exits Taken 2 | . 1 . 1 . Unknown Exits Taken 2 | 1 . 1 . . Scrap Searched 3 | . . 2 . 1 Spaces Dug 14 | . . . 6 8 Terrain Destroyed 14 | . . . 6 8 Melee 14 | . . . 6 8 Projectile . | . . . . . AOE . | . . . . . Terrain Rammed . | . . . . . Walls Destroyed . | . . . . . Machines Disabled . | . . . . . Actions | -11 -10 -10 -9 -9 --------- Run | Scr Mat Min Mat Min Total 1614 | 28 265 877 160 284 Wait 84 | . 7 38 18 21 Move 1402 | 28 248 794 119 213 Hop 7 | . . 2 2 3 Pick Up . | . . . . . Fast Attach 9 | . 2 4 1 2 Attach . | . . . . . Detach . | . . . . . Swap 4 | . . 4 . . Drop 9 | . . 5 1 3 Fire . | . . . . . Melee 90 | . 8 28 19 35 Ram . | . . . . . Kick . | . . . . . Crush . | . . . . . Escape Stasis . | . . . . . Rewire . | . . . . . Trap 5 | . . . . 5 Miscellaneous 4 | . . 2 . 2 Route ------- -11/Scrapyard -10/Materials -10/Mines -9/Materials (discovered 3 exits: Mat / *Min x2) -9/Mines History --------- Turn | Location | Event 1 | -11/Scrapyard | Upgraded with Propulsion slot (x1) 3 | -11/Scrapyard | Discovered new exit (range 15) 15 | -11/Scrapyard | Entered Materials 119 | -10/Materials | Identified exit to Mines 174 | -10/Materials | Entered Mines 178 | -10/Mines | Met a Derelict bent on vengeance 184 | -10/Mines | Learned location of 1 exit from Materials 185 | -10/Mines | Learned location of Storage (-8) 224 | -10/Mines | Core integrity fell below 50% 234 | -10/Mines | Discovered new exit (range 10) 314 | -10/Mines | Build established: Mutant 474 | -10/Mines | Found a damaged Exp. Sensor Array with a note attached 476 | -10/Mines | Found Prototype Device 476 | -10/Mines | Identified Exp. Sensor Array 633 | -10/Mines | Entered Materials 634 | -9/Materials | Identified exit to Materials 634 | -9/Materials | Core integrity fell below 50% 635 | -9/Materials | Reached level 2 635 | -9/Materials | Upgraded with Utility slot (x1) 731 | -9/Materials | Discovered new exit (range 15) 732 | -9/Materials | Identified exit to Mines 739 | -9/Materials | Core integrity fell below 20% 753 | -9/Materials | Reached level 3 758 | -9/Materials | Entered Mines 762 | -9/Mines | Found the Drone Emporium 763 | -9/Mines | Found Prototype Device 763 | -9/Mines | Identified Sensor Drone Bay 848 | -9/Mines | Found a hidden stash of uninstalled traps 859 | -9/Mines | Learned location of Zion (-7) 906 | -9/Mines | Crushed by falling debris 934 | -9/Mines | Build established: Hacker-Mutant 943 | -9/Mines | Crushed by falling debris 975 | -9/Mines | Received a Rocket Launcher from a helpful Derelict 1002 | -9/Mines | Excavation squad dispatched 1002 | -9/Mines | A large section of the Mines collapsed 1002 | -9/Mines | Destroyed by as-64509 with Assembled Maul Last Messages --------------- 00965_ Sneak attack on U-05 Engineer. 00965_ Destroyed Welding Torch. 00965_ Destroyed Wheel. 00969_ ALERT: Construction progress impeded, dispatching reinforcements to local area. 00972_ 6A-MM2(g): "Everyone knows a good old rocket launcher goes a long way." 00972_ The unstable cave ceiling collapses. 00973_ 6A-MM2(g): "Need to get rid of a swarm? Done. Need a big hole in the wall? Done." 00974_ 6A-MM2(g): "Need a small hole in the wall? Leave that to the mining laser wimps, I say!" 00975_ 6A-MM2(g): "Would you like a rocket launcher? I know I would if I were you, so I'm going to lend you mine." 00975_ 6A-MM2(g) slips back into the shadows. 00975_ Dropped Mining Claw. 00976_ Acquired Rocket Launcher. 00981_ The unstable cave ceiling collapses. 00982_ K-01 Serf collects debris. 01002_ ALERT: Suspicious cave-in, suspected derelict activity in mines. Dispatching escorted excavation squad. Map ----- +----------------------------------------------------+ | #### ## ##??### #???????????????????????????? | | ######?????# #???????????????????????????? | | #####* ##???####### #######?????????????????????? | | ##?## #??##""## #?????????????????????? | | #### #??#" # #?????????????????????? | | ### #??#" #????????????######???? | | / #??#" = #??????????? #???? | | ^ ##??#" # [ * #?????????? ???? | | #???##""## = #????????? ?????? | | ## ##????##### %[ #???####?# #???????? | | ### ###?????????#####=#####??## ## #????????? | | #?# ???????????????# #?????## = #????????? | | ##?# ??????????????#!#????## ! %[ #?????????? | | #??## ?????????????#%###### = ##?????????? | | ###??# ####????###### ! ##??????????? | | ##?? ???## ########## ######???????????? | | #??##### ??# ####????####????????????????? | | #??????# ### ##???????????????????????? | | #??????# #???????????????????????? | | ##??????# # #???????????????????????? | | ##??????????# ##?###??????????????????? | | #???????????# ## ##?????????????????? | | ##?????????## ##????????????????? | | ########### ## #????????????????? | | ##a# #????????????????? | | #@# ##????????????????? | | ############ ### ### ##?????????????????? | | ##??????????## #?## ##??????????????????? | | ?????????????# #?##### #???????????????????? | | ?????????????# #?????# #??????????????????? | | ?????????????# ##????? #?????????????????? | | ????????????? #?????? #?????????????????? | | ????????????# #?????? ##?????????????????? | | ????????????## ##?????? ###??????????????????? | | ?????????????# #??????## ##????????????????????? | | ????????????? #???????####?????????????????????? | | ????????????? #????????????????????????????????? | | ?????????????####????????????????????????????????? | | ?????????????????????????????????????????????????? | | ?????????????????????????????????????????????????? | | ?????????????????????????????????????????????????? | | ?????????????????????????????????????????????????? | | ?????????????????????????????????????????????????? | | ?????????????????????????????????????????????????? | | ?????????????????????????????????????????????????? | | ?????????????????????????????????????????????????? | | ?????????????????????????????????????????????????? | | ?????????????????????????????????????????????????? | | ?????????????????????????????????????????????????? | | ?????????????????????????????????????????????????? | +----------------------------------------------------+ Best States ------------- Heat Dissipation 31 Energy Generation 10 Energy Capacity 125 Matter Stores 300 Matter Capacity 300 Sight Range 16 Robot Scan Range 30 Terrain Scan Density 10 ECM Strength 1 Evasion (%) 62 Offensive Hacking 15 Defensive Hacking 10 Item Schematics ----------------- Maul | -9/Materials | Extracted Robot Schematics ------------------ None Fabricated ------------ Nothing Alien Tech Used ----------------- None Achievements -------------- None Challenges ------------ None RPGLIKE | -11 -10 -10 -9 -9 --------- Run | Scr Mat Min Mat Min Levels Raised 2 | . . . 2 . XP Earned 6775 | 3000 140 1100 1785 750 XP Spent 5950 | 3000 . . 1475 1475 Upgrades 21 | 8 . . 6 7 Propulsion Slot 1 | 1 . . . . Utility Slot 1 | . . . 1 . Core Integrity 6 | . . . 1 5 Heat Dissipation 1 | . . . 1 . Mass Support 2 | 1 . . . 1 Ranged Accuracy 3 | 3 . . . . Melee Accuracy 2 | 1 . . 1 . Hack Attack % 3 | . . . 2 1 Hack Defense % 2 | 2 . . . . Protomatter Created 55 | . . 14 28 13 Integrity Restored 81 | . . 42 . 39 Core 81 | . . 42 . 39 Protomatter Decayed 126 | . . . 28 98 Game ------ Seed BottomlessWeldingMallet Manual? 0 Play Time 00:19:05 Cumulative 82.1 hours Start 2020.10.02 @ 14:01:23 End 2020.10.02 @ 14:16:41 Sessions 1 Manual Loads 0 Difficulty Rogue Special Mode Winter2019/RPGLIKE Game No. 119 Rogue 95 Adventurer 22 Explorer 2 Win Type - Total 1 Types 1/0/0/0/0/0/0/0/0 Lore% 44 Gallery% 48 Achievement% 39 Wizard Run 0 Options --------- ASCII 0 Keyboard 0 Movement Numpad Keybinds 0 Fullscreen 1 Font 14/SmallcapsGlow Map View 84x54 Tactical HUD 1 Map Filters NONE Filters NONE Steam 1 RUN: 052f9063-5fcd-462b-b13e-b13a786be51c